bitfinex/quotes_BTCUSD_20250518
["timestamp","ask_amount","ask_price","bid_price","bid_amount"]
[1747600248622,2.09289981,103950.0,103940.0,0.30076527]
[1747600249661,2.09289981,103950.0,103940.0,0.05394242]
[1747600251784,1.17441118,103920.0,103910.0,0.13970313]
[1747600252003,1.17441118,103920.0,103910.0,0.10867558]
[1747600252004,1.52300058,103920.0,103910.0,0.10867558]
[1747600252709,1.55188958,103920.0,103910.0,0.10867558]
[1747600252936,1.55188958,103920.0,103910.0,0.03127245]
[1747600253366,1.56977185,103920.0,103910.0,0.03127245]
[1747600253597,1.26568701,103920.0,103910.0,0.03127245]
[1747600253841,1.01440701,103920.0,103910.0,0.06157245]
[1747600254063,1.26556701,103920.0,103910.0,0.06157245]
[1747600254282,1.01440701,103920.0,103910.0,0.06157245]
[1747600254508,1.26552701,103920.0,103910.0,0.06157245]
[1747600256089,1.26540701,103920.0,103910.0,0.06157245]
[1747600257385,1.95320701,103920.0,103910.0,0.06157245]
[1747600258306,1.93532474,103920.0,103910.0,0.06157245]
[1747600262566,1.9501641,103920.0,103910.0,0.00047245]
[1747600262821,1.93532474,103920.0,103910.0,0.00047245]
[1747600263055,2.31170958,103920.0,103910.0,0.00047245]
[1747600263472,1.62390958,103920.0,103910.0,0.00047245]
[1747600263674,1.66626972,103920.0,103910.0,0.00047245]
[1747600263825,1.75357912,103920.0,103910.0,0.00047245]
[1747600264041,1.74657912,103920.0,103910.0,0.00047245]
[1747600265252,1.74357912,103920.0,103910.0,0.00047245]
[1747600265498,1.61390958,103920.0,103910.0,0.00047245]
[1747600265724,1.39578916,103920.0,103910.0,0.00047245]
[1747600265947,1.83640916,103920.0,103910.0,0.00047245]
[1747600266188,1.83440916,103920.0,103910.0,0.00047245]
[1747600266410,1.59376916,103920.0,103910.0,0.00047245]
[1747600266639,1.59576916,103920.0,103910.0,0.00047245]
[1747600266876,1.33548916,103920.0,103910.0,0.00047245]
[1747600267083,1.25710347,103920.0,103910.0,0.06317245]
[1747600267494,1.27164432,103920.0,103910.0,0.06317245]
[1747600267957,1.26964432,103920.0,103910.0,0.06317245]
[1747600268409,0.6924399,103920.0,103910.0,0.06317245]
[1747600268627,0.58805905,103920.0,103910.0,0.06317245]
[1747600268838,0.31978124,103920.0,103910.0,0.06317245]
[1747600269063,0.58444209,103920.0,103910.0,0.06317245]
[1747600269273,0.47159184,103920.0,103910.0,0.06317245]
[1747600269689,0.47659184,103920.0,103910.0,0.06317245]
[1747600269900,0.49113269,103920.0,103910.0,0.06317245]
[1747600270308,0.48143037,103920.0,103910.0,0.06317245]
[1747600270888,0.78551521,103920.0,103910.0,0.06317245]
[1747600271252,0.88282461,103920.0,103910.0,0.06317245]
[1747600273185,0.63278461,103920.0,103910.0,0.06317245]
[1747600273391,1.22262461,103920.0,103910.0,0.06317245]
[1747600273607,1.52670945,103920.0,103910.0,0.03247245]
[1747600273816,1.52670945,103920.0,103910.0,0.00047245]
[1747600274030,1.52670945,103920.0,103910.0,0.03217245]
[1747600274238,1.62401885,103920.0,103910.0,0.00047245]
[1747600274455,2.31181885,103920.0,103910.0,0.00047245]
[1747600274662,2.24686959,103920.0,103910.0,0.00047245]
[1747600276133,2.21450945,103920.0,103910.0,0.00047245]
[1747600276569,1.66062461,103920.0,103910.0,0.03187245]
[1747600276791,1.91018461,103920.0,103910.0,0.06367245]
[1747600277017,1.34876858,103920.0,103910.0,0.06367245]
[1747600277255,1.58378773,103920.0,103910.0,0.06367245]
[1747600277565,1.59832858,103920.0,103910.0,0.06367245]
[1747600277779,1.60605151,103920.0,103910.0,0.06367245]
[1747600277981,1.91013635,103920.0,103910.0,0.06367245]
[1747600279113,1.96466119,103920.0,103910.0,0.06367245]
[1747600279322,1.90497635,103920.0,103910.0,0.06356559]
[1747600280285,1.07145719,103920.0,103910.0,0.2752868]
[1747600280498,1.51323357,103920.0,103910.0,0.27528698]
[1747600280714,1.52777442,103920.0,103910.0,0.06356559]
[1747600280937,1.2688321,103920.0,103910.0,0.06356559]
[1747600281148,1.5181121,103920.0,103910.0,0.06356559]
[1747600281372,1.81919694,103920.0,103910.0,0.06356559]
[1747600281597,1.82119694,103920.0,103910.0,0.06356559]
[1747600282084,1.97331118,103920.0,103910.0,0.06356559]
[1747600282302,2.21851118,103920.0,103910.0,0.06356559]
[1747600282514,2.21851118,103920.0,103910.0,0.03176559]
[1747600282720,2.21951118,103920.0,103910.0,0.03176559]
[1747600282939,2.21951118,103920.0,103910.0,0.00036559]
[1747600283146,1.91542634,103920.0,103910.0,0.03256559]
[1747600283346,1.91542634,103920.0,103910.0,0.05906559]
[1747600283780,1.91530634,103920.0,103910.0,0.05906559]
[1747600284793,1.6111415,103920.0,103910.0,0.05906559]
[1747600285365,1.6111015,103920.0,103910.0,0.06868921]
[1747600285571,1.6111015,103920.0,103910.0,0.05906559]
[1747600286191,1.6014789,103920.0,103910.0,0.05906559]
[1747600286815,1.59372867,103920.0,103910.0,0.05906559]
[1747600287549,1.50604168,103920.0,103910.0,0.27078679]
[1747600288236,1.50604168,103920.0,103910.0,0.05906559]
[1747600288684,1.49641927,103920.0,103910.0,0.05906559]
[1747600288900,1.80050411,103920.0,103910.0,0.05906559]
[1747600290763,1.80843553,103920.0,103910.0,0.05906559]
[1747600291857,1.25539069,103920.0,103910.0,0.05906559]
[1747600292090,1.50391069,103920.0,103910.0,0.26116355]
[1747600292334,0.69877142,103920.0,103910.0,0.36743651]
[1747600292546,0.01097142,103920.0,103910.0,0.36743651]
[1747600293166,0.00304,103920.0,103910.0,0.36743651]
[1747600293782,0.00304,103920.0,103910.0,0.37664153]
[1747600294000,0.01266195,103920.0,103910.0,0.2992384]
[1747600294248,0.03190622,103920.0,103910.0,0.2992384]
[1747600294439,0.21514645,103920.0,103910.0,0.06827061]
[1747600294649,0.21274065,103920.0,103910.0,0.06827061]
[1747600294951,0.21274065,103920.0,103910.0,0.07789432]
[1747600295163,0.21174065,103920.0,103910.0,0.06827061]
[1747600295376,0.53036634,103920.0,103910.0,0.06827061]
[1747600295592,0.2262815,103920.0,103910.0,0.26074486]
[1747600295794,0.2262815,103920.0,103910.0,0.27036838]
[1747600296237,0.2262815,103920.0,103910.0,0.06827061]
[1747600296410,0.2262815,103920.0,103910.0,0.07789432]
[1747600297241,0.95805342,103920.0,103910.0,0.00957061]
[1747600297817,0.95805342,103920.0,103910.0,0.00036559]
[1747600298036,0.96598484,103920.0,103910.0,0.00036559]
[1747600298252,0.96798484,103920.0,103910.0,0.00036559]
[1747600298461,0.96898484,103920.0,103910.0,0.00036559]
[1747600301387,1.43257908,103920.0,103910.0,0.00036559]
[1747600301813,1.46492157,103920.0,103910.0,0.00036559]
[1747600302018,1.33526968,103920.0,103910.0,0.00036559]
[1747600302682,0.97105342,103920.0,103910.0,0.00036559]
[1747600302900,1.21877342,103920.0,103910.0,0.02586559]
[1747600303537,0.99994442,103920.0,103910.0,0.02586559]
[1747600303737,1.24762442,103920.0,103910.0,0.02586559]
[1747600304352,1.24762442,103920.0,103910.0,0.00036559]
[1747600304761,1.70121866,103920.0,103910.0,0.00036559]
[1747600306014,1.60390926,103920.0,103910.0,0.00036559]
[1747600306250,0.98994442,103920.0,103910.0,0.05176559]
[1747600306450,1.20853342,103920.0,103910.0,0.05176559]
[1747600306870,1.21624537,103920.0,103910.0,0.05176559]
[1747600308130,0.96876537,103920.0,103910.0,0.05176559]
[1747600308341,1.21612537,103920.0,103910.0,0.05176559]
[1747600314360,1.21572537,103920.0,103910.0,0.05176559]
[1747600314988,0.96876537,103920.0,103910.0,0.05176559]
[1747600315218,1.21568537,103920.0,103910.0,0.05176559]
[1747600318232,1.21544537,103920.0,103910.0,0.05176559]
[1747600319756,0.91128053,103920.0,103910.0,0.25386346]
[1747600319973,0.66468053,103920.0,103910.0,0.05176559]
[1747600320189,0.91124053,103920.0,103910.0,0.05176559]
[1747600320864,1.21532537,103920.0,103910.0,0.05176559]
[1747600321924,1.21532537,103920.0,103910.0,0.02586559]
[1747600324862,1.21532537,103920.0,103910.0,0.05046559]
[1747600325073,0.66468053,103920.0,103910.0,0.24293984]
[1747600325303,0.66468053,103920.0,103910.0,0.05046559]
[1747600325542,1.21496537,103920.0,103910.0,0.05046559]
[1747600326389,0.91088053,103920.0,103910.0,0.05046559]
[1747600331461,0.91048053,103920.0,103910.0,0.05046559]
[1747600332701,0.91040053,103920.0,103910.0,0.05046559]
[1747600332848,0.91040053,103920.0,103910.0,0.0600893]
[1747600333103,0.91040053,103920.0,103910.0,0.05046559]
[1747600334422,0.96876537,103920.0,103910.0,0.05046559]
[1747600334626,0.91028053,103920.0,103910.0,0.05046559]
[1747600334832,1.21436537,103920.0,103910.0,0.05046559]
[1747600335206,0.3749154,103920.0,103910.0,0.24293984]
[1747600335395,0.02999631,103920.0,103910.0,0.28143319]
[1747600335624,0.23207464,103920.0,103910.0,0.27181032]
[1747600335841,0.01075195,103920.0,103910.0,0.70238591]
[1747600336293,0.00304,103920.0,103910.0,0.70238591]
[1747600336708,0.00204,103920.0,103910.0,0.51805032]
[1747600336919,0.02128418,103920.0,103910.0,0.53729662]
[1747600337131,0.0405291,103920.0,103910.0,0.54651737]
[1747600337345,0.24060761,103920.0,103910.0,0.53689431]
[1747600337577,0.24060761,103920.0,103910.0,0.54651681]
[1747600337778,0.0385291,103920.0,103910.0,0.54651681]
[1747600338192,0.01928408,103920.0,103910.0,0.54651681]
[1747600338401,4e-05,103920.0,103910.0,0.54651681]
[1747600338611,4e-05,103920.0,103910.0,0.65532553]
[1747600339049,4e-05,103920.0,103910.0,0.66516413]
[1747600342776,4e-05,103920.0,103910.0,1.08068413]
[1747600343556,4e-05,103920.0,103910.0,1.42068413]
[1747600343757,4e-05,103920.0,103910.0,1.41084553]
[1747600346356,4e-05,103920.0,103910.0,1.16460553]
[1747600346563,4e-05,103920.0,103910.0,1.41080553]
[1747600348143,4e-05,103920.0,103910.0,1.41180553]
[1747600348983,4e-05,103920.0,103910.0,1.41380553]
[1747600350221,4e-05,103920.0,103910.0,1.41765158]
[1747600350431,4e-05,103920.0,103910.0,1.41661158]
[1747600350840,4e-05,103920.0,103910.0,1.42061158]
[1747600351799,4e-05,103920.0,103910.0,1.17245158]
[1747600352004,4e-05,103920.0,103910.0,1.41861158]
[1747600352155,4e-05,103920.0,103910.0,1.42261158]
[1747600353089,4e-05,103920.0,103910.0,1.40726621]
[1747600356180,4e-05,103920.0,103910.0,1.4187434]
[1747600356366,4e-05,103920.0,103910.0,1.1725834]
[1747600356572,4e-05,103920.0,103910.0,0.8325834]
[1747600356771,0.02890631,103920.0,103910.0,1.0766234]
[1747600357145,0.2117412,103920.0,103910.0,0.27310353]
[1747600357556,0.2117412,103920.0,103910.0,0.48082492]
[1747600357757,0.2117412,103920.0,103910.0,0.48382492]
[1747600357967,0.2117412,103920.0,103910.0,0.49344826]
[1747600358391,4e-05,103920.0,103910.0,0.49907132]
[1747600358591,0.03852928,103920.0,103910.0,0.54757132]
[1747600358797,0.03852928,103920.0,103910.0,0.55057132]
[1747600359003,0.03852928,103920.0,103910.0,0.52687338]
[1747600359298,0.01454085,103930.0,103920.0,0.34]
[1747600359553,0.20697915,103930.0,103920.0,0.342]
[1747600359989,0.00962112,103930.0,103920.0,0.57860101]
[1747600360203,0.00961973,103950.0,103940.0,0.20203963]
[1747600360405,0.27269909,103950.0,103940.0,0.54203963]
[1747600360612,0.27269909,103950.0,103940.0,0.3649]
[1747600360613,0.47471928,103950.0,103940.0,0.3649]
[1747600360820,0.4554801,103950.0,103940.0,0.34]
[1747600361227,0.47002095,103950.0,103940.0,0.34]
[1747600362419,0.22618095,103950.0,103940.0,0.54203954]
[1747600362604,0.22618095,103950.0,103940.0,0.34962093]
[1747600362813,0.23018095,103950.0,103940.0,0.34962093]
[1747600363578,0.21656104,103950.0,103940.0,0.34]
[1747600363775,0.61995528,103950.0,103940.0,0.34]
[1747600364277,0.62875528,103950.0,103940.0,0.34]
[1747600367891,0.20205897,103930.0,103920.0,0.25608]
[1747600368099,0.21659982,103930.0,103920.0,0.25608]
[1747600368300,0.21659982,103930.0,103920.0,0.59608]
[1747600368890,0.21659982,103930.0,103920.0,0.25608]
[1747600369105,0.21659982,103930.0,103920.0,0.59608]
[1747600369302,0.21659982,103930.0,103920.0,0.59708]
[1747600369645,0.21659982,103930.0,103920.0,0.59808]
[1747600370572,0.21659982,103930.0,103920.0,0.59708]
[1747600370949,0.21759982,103930.0,103920.0,0.59608]
[1747600371164,0.7552229,103930.0,103920.0,0.342]
[1747600372229,0.8525323,103930.0,103920.0,0.342]
[1747600372648,0.86007148,103930.0,103920.0,0.342]
[1747600375721,0.86537148,103930.0,103920.0,0.342]
[1747600375932,0.8578323,103930.0,103920.0,0.17272055]
[1747600376141,0.20207833,103920.0,103910.0,0.04846559]
[1747600376553,0.21170083,103920.0,103910.0,0.05846559]
[1747600376765,0.21170083,103920.0,103910.0,0.04846559]
[1747600377114,0.51578567,103920.0,103910.0,0.04846559]
[1747600377329,0.51578567,103920.0,103910.0,0.03516559]
[1747600377524,0.51578567,103920.0,103910.0,0.03616559]
[1747600377728,0.53032652,103920.0,103910.0,0.02716559]
[1747600377939,0.53032652,103920.0,103910.0,0.00236559]
[1747600377940,0.62763592,103920.0,103910.0,0.00236559]
[1747600378655,0.62763592,103920.0,103910.0,0.00136559]
[1747600378868,0.62763592,103920.0,103910.0,0.00036559]
[1747600379270,0.62863592,103920.0,103910.0,0.00036559]
[1747600380255,0.32455108,103920.0,103910.0,0.00036559]
[1747600380881,0.32455108,103920.0,103910.0,0.02416559]
[1747600381118,0.32455108,103920.0,103910.0,0.04806559]
[1747600381938,0.24352,103920.0,103910.0,0.26941013]
[1747600382146,0.02024436,103920.0,103910.0,0.26941013]
[1747600382376,0.02024436,103920.0,103910.0,0.28903319]
[1747600382809,0.02986686,103920.0,103910.0,0.28903319]
[1747600383013,0.22232259,103920.0,103910.0,0.27941013]
[1747600383435,0.22232259,103920.0,103910.0,0.28903319]
[1747600383678,0.02986686,103920.0,103910.0,0.28903319]
[1747600383899,0.02986677,103920.0,103910.0,0.28903319]
[1747600384355,0.02024427,103920.0,103910.0,0.28903319]
[1747600384580,0.01062195,103920.0,103910.0,0.29903319]
[1747600384793,0.001,103920.0,103910.0,0.29903319]
[1747600385056,0.001,103920.0,103910.0,0.39634259]
[1747600385266,0.001,103920.0,103910.0,0.48346225]
[1747600385483,0.0076274,103940.0,103930.0,0.28810167]
[1747600385719,0.0076274,103940.0,103930.0,0.53222167]
[1747600386401,0.0076274,103940.0,103930.0,0.62953107]
[1747600386612,0.0076274,103940.0,103930.0,0.63873536]
[1747600386819,0.002,103950.0,103940.0,0.28808038]
[1747600387042,0.002,103950.0,103940.0,0.38534978]
[1747600388170,0.002,103950.0,103940.0,0.38634978]
[1747600388879,0.002,103950.0,103940.0,0.39555407]
[1747600389105,0.00204,103950.0,103940.0,0.39655407]
[1747600395998,0.00204,103950.0,103940.0,0.63871407]
[1747600396681,0.0355141,103960.0,103950.0,0.27891909]
[1747600396905,0.01627659,103960.0,103950.0,0.38622849]
[1747600397340,0.0192351,103970.0,103960.0,0.29851651]
[1747600397554,0.02885307,103970.0,103960.0,0.29851651]
[1747600397774,0.0192351,103970.0,103960.0,0.29851651]
[1747600398062,0.01928231,103970.0,103960.0,0.29851651]
[1747600398742,0.02128231,103970.0,103960.0,0.29851651]
[1747600399173,0.01166462,103970.0,103960.0,0.29851651]
[1747600399391,0.02128222,103970.0,103960.0,0.29851651]
[1747600399602,0.00204721,103970.0,103960.0,0.29851651]
[1747600400873,0.02128231,103970.0,103960.0,0.29851651]
[1747600401082,0.03090028,103970.0,103960.0,0.28889808]
[1747600401296,0.23288161,103970.0,103960.0,0.28889827]
[1747600401508,0.21161891,103960.0,103950.0,0.23666019]
[1747600401715,0.02885594,103960.0,103950.0,0.11881691]
[1747600401934,0.23085661,103960.0,103950.0,0.118817]
[1747600402357,0.02885594,103960.0,103950.0,0.15183636]
[1747600402574,0.03847483,103960.0,103950.0,0.13259755]
[1747600402783,0.23085716,103960.0,103950.0,0.07995819]
[1747600402996,0.01923862,103950.0,103940.0,0.47339973]
[1747600403205,0.01923862,103950.0,103940.0,0.49679973]
[1747600403206,0.00961917,103950.0,103940.0,0.49679973]
[1747600403825,0.01923843,103950.0,103940.0,0.49679973]
[1747600404042,0.00961917,103950.0,103940.0,0.49679973]
[1747600404502,0.89314815,103970.0,103960.0,0.20200067]
[1747600404714,0.45974497,103970.0,103960.0,0.22123808]
[1747600404921,0.01751204,103970.0,103960.0,0.25515651]
[1747600405125,0.03674752,103970.0,103960.0,0.27855651]
[1747600405332,0.01928204,103970.0,103960.0,0.27855651]
[1747600405627,0.0405177,103970.0,103960.0,0.27855651]
[1747600406033,0.05013576,103970.0,103960.0,0.26893808]
[1747600406972,0.05013659,103970.0,103960.0,0.26893808]
[1747600407330,0.01923714,103960.0,103950.0,0.24463881]
[1747600407501,0.01923677,103960.0,103950.0,0.28245873]
[1747600407702,0.00961834,103960.0,103950.0,0.28245873]
[1747600408528,0.01061834,103960.0,103950.0,0.28245873]
[1747600409853,0.001,103960.0,103950.0,0.28245873]
[1747600411606,0.001,103960.0,103950.0,0.37976813]
[1747600411963,0.001,103960.0,103950.0,0.38895426]
[1747600413836,0.001,103960.0,103950.0,0.72895426]
[1747600415605,0.001,103960.0,103950.0,0.74429963]
[1747600418239,0.001,103960.0,103950.0,1.23370276]
[1747600418875,0.001,103960.0,103950.0,1.15629963]
[1747600419113,0.001,103960.0,103950.0,1.38123426]
[1747600419347,0.001,103960.0,103950.0,1.14095426]
[1747600419538,4.721e-05,103970.0,103960.0,0.56123781]
[1747600419731,4.721e-05,103970.0,103960.0,0.71604721]
[1747600419941,4.721e-05,103970.0,103960.0,0.73523334]
[1747600420352,4.721e-05,103970.0,103960.0,1.15055334]
[1747600420757,4.721e-05,103970.0,103960.0,1.15155334]
[1747600420969,4.721e-05,103970.0,103960.0,1.38183334]
[1747600421172,4.721e-05,103970.0,103960.0,1.39283334]
[1747600421790,4.721e-05,103970.0,103960.0,1.39279334]
[1747600422668,4.721e-05,103970.0,103960.0,1.40429612]
[1747600423629,4.721e-05,103970.0,103960.0,1.16405612]
[1747600423910,4.721e-05,103970.0,103960.0,1.40429612]
[1747600425251,4.721e-05,103970.0,103960.0,0.96698672]
[1747600428026,0.00550881,103980.0,103970.0,0.27781653]
[1747600428256,0.01559741,103980.0,103970.0,0.27781653]
[1747600428475,0.02521418,103980.0,103970.0,0.48895653]
[1747600428685,0.03483104,103980.0,103970.0,0.46145653]
[1747600428889,0.06433104,103980.0,103970.0,0.47064266]
[1747600429093,0.05471418,103980.0,103970.0,0.47064266]
[1747600429306,0.01559741,103980.0,103970.0,0.47064266]
[1747600429523,0.02521408,103980.0,103970.0,0.47064266]
[1747600429930,0.02621408,103980.0,103970.0,0.49854266]
[1747600430553,0.03583094,103980.0,103970.0,0.49854266]
[1747600430771,0.02621408,103980.0,103970.0,0.49854266]
[1747600431640,0.04544789,103980.0,103970.0,0.48064266]
[1747600431853,0.07725227,103980.0,103970.0,0.48064266]
[1747600432114,0.06763523,103980.0,103970.0,0.48064266]
[1747600432350,0.07725227,103980.0,103970.0,0.48064266]
[1747600432568,0.57654863,103980.0,103970.0,0.00918613]
[1747600432782,0.6859945,103980.0,103970.0,0.00918613]
[1747600432994,0.6859945,103980.0,103960.0,0.88830059]
[1747600432995,0.05825307,103970.0,103960.0,0.88830059]
[1747600433847,0.06787095,103970.0,103960.0,0.88830059]
[1747600434271,0.06787095,103970.0,103960.0,0.88800188]
[1747600434481,0.06787077,103970.0,103960.0,0.64776188]
[1747600434952,0.07748883,103970.0,103960.0,0.64776188]
[1747600435172,0.07748883,103970.0,103960.0,0.64776197]
[1747600435377,0.07748883,103970.0,103960.0,0.6563804]
[1747600435591,0.07848883,103970.0,103960.0,0.6553804]
[1747600435820,0.04908883,103970.0,103960.0,0.64576197]
[1747600436164,0.04908883,103970.0,103960.0,0.6553804]
[1747600436977,0.22221709,103970.0,103960.0,0.62652474]
[1747600437210,0.26123524,103970.0,103960.0,0.64576225]
[1747600437588,0.26123524,103970.0,103960.0,0.65538077]
[1747600437792,0.25161709,103970.0,103960.0,0.65538077]
[1747600438049,0.25161709,103970.0,103960.0,0.00920407]
[1747600438405,1.0200343,103970.0,103960.0,0.00920407]
[1747600438609,0.71594946,103970.0,103960.0,0.00920407]
[1747600439143,0.24933808,103960.0,103950.0,0.46149908]
[1747600439334,0.25895642,103960.0,103950.0,0.44225991]
[1747600439540,0.04733732,103960.0,103950.0,0.46149927]
[1747600439809,0.04733732,103960.0,103950.0,0.45187964]
[1747600439810,0.25895688,103960.0,103950.0,0.45187964]
[1747600440007,0.25895688,103960.0,103950.0,0.47111872]
[1747600440202,0.21163937,103950.0,103940.0,0.24144195]
[1747600440406,0.01923881,103950.0,103940.0,0.50092298]
[1747600440553,0.02885854,103950.0,103940.0,0.50092298]
[1747600440748,0.23087855,103950.0,103940.0,0.24944591]
[1747600441012,0.21163974,103950.0,103940.0,0.45148554]
[1747600441164,0.23973974,103950.0,103940.0,0.47072703]
[1747600441363,0.04733955,103950.0,103940.0,0.49196768]
[1747600441796,0.02709555,103950.0,103940.0,0.49196768]
[1747600442273,0.22911565,103950.0,103940.0,0.47372703]
[1747600442475,0.03671546,103950.0,103940.0,0.49296778]
[1747600442688,0.02885946,103950.0,103940.0,0.48176187]
[1747600443007,0.02885946,103950.0,103940.0,0.48276187]
[1747600443192,0.22366507,103950.0,103940.0,0.45390047]
[1747600443343,0.24935992,103950.0,103940.0,0.47314187]
[1747600443562,0.56592494,103950.0,103940.0,0.24224]
[1747600443788,0.57378094,103950.0,103940.0,0.24224]
[1747600444145,0.2696961,103950.0,103940.0,0.25186084]
[1747600444361,0.2696961,103950.0,103940.0,0.44427954]
[1747600444575,0.01747563,103950.0,103940.0,0.46352085]
[1747600444799,0.04633481,103950.0,103940.0,0.47314113]
[1747600445008,0.0174748,103960.0,103950.0,0.21163973]
[1747600445214,0.80781389,103960.0,103950.0,0.23933973]
[1747600446231,0.80881389,103960.0,103950.0,0.23933973]
[1747600446447,0.80881389,103960.0,103950.0,0.25857872]
[1747600446870,0.80881389,103960.0,103950.0,0.24895927]
[1747600447943,0.80881389,103960.0,103950.0,0.2020201]
[1747600448151,0.00961945,103950.0,103940.0,0.51959936]
[1747600448371,0.01923871,103950.0,103940.0,0.51795936]
[1747600448598,0.01923843,103950.0,103940.0,0.51795936]
[1747600449014,0.008856,103960.0,103950.0,0.27935909]
[1747600449224,0.01747425,103960.0,103950.0,0.27935909]
[1747600449438,0.01747425,103960.0,103950.0,0.28935909]
[1747600449439,0.007856,103960.0,103950.0,0.28935909]
[1747600449641,0.01747425,103960.0,103950.0,0.28935909]
[1747600449865,0.35747351,103970.0,103960.0,0.22123781]
[1747600450095,0.007856,103970.0,103960.0,0.28933781]
[1747600450318,0.01747332,103970.0,103960.0,0.28933781]
[1747600450527,0.02709073,103970.0,103960.0,0.28933781]
[1747600450940,0.05594399,103970.0,103960.0,0.27933781]
[1747600451165,0.04808799,103970.0,103960.0,0.27933781]
[1747600451386,0.0480879,103970.0,103960.0,0.27933781]
[1747600451591,0.03847002,103970.0,103960.0,0.27933781]
[1747600451997,0.04047002,103970.0,103960.0,0.27933781]
[1747600452149,0.03085233,103970.0,103960.0,0.28933781]
[1747600452351,0.02123473,103970.0,103960.0,0.28933781]
[1747600452741,0.002,103970.0,103960.0,0.28933781]
[1747600453150,0.01161732,103970.0,103960.0,0.28933781]
[1747600453781,0.03085242,103970.0,103960.0,0.28933781]
[1747600454205,0.02123473,103970.0,103960.0,0.52793781]
[1747600454453,0.03085233,103970.0,103960.0,0.52793781]
[1747600454664,0.5297061,103970.0,103960.0,0.2664]
[1747600454879,0.01923696,103960.0,103950.0,0.29857835]
[1747600455062,0.02885585,103960.0,103950.0,0.29857854]
[1747600455533,0.01923696,103960.0,103950.0,0.29857854]
[1747600455740,0.02885576,103960.0,103950.0,0.30777403]
[1747600456575,0.02885576,103960.0,103950.0,0.28915476]
[1747600456576,0.23085633,103960.0,103950.0,0.28915476]
[1747600456796,0.03847465,103960.0,103950.0,0.31839357]
[1747600456995,0.03847465,103960.0,103950.0,0.55699357]
[1747600457203,0.02885576,103960.0,103950.0,0.55699357]
[1747600457639,0.02885576,103960.0,103950.0,0.55799357]
[1747600458274,0.01923696,103960.0,103950.0,0.55799357]
[1747600458483,0.02885576,103960.0,103950.0,0.55799357]
[1747600459349,0.03671176,103960.0,103950.0,0.55799357]
[1747600459564,0.007856,103960.0,103950.0,0.55799357]
[1747600460004,0.007856,103960.0,103950.0,0.65530297]
[1747600460800,0.01747332,103970.0,103960.0,0.28783781]
[1747600461546,0.007856,103970.0,103960.0,0.3943427]
[1747600461988,0.008856,103970.0,103960.0,0.3943427]
[1747600463354,0.001,103970.0,103960.0,0.3943427]
[1747600463555,0.00885749,103970.0,103960.0,0.3943427]
[1747600464411,0.00885749,103970.0,103960.0,0.47174583]
[1747600464630,0.00885749,103970.0,103960.0,0.3943427]
[1747600464837,0.001,103970.0,103960.0,0.3943427]
[1747600468635,0.001,103970.0,103960.0,0.47174583]
[1747600468851,0.001,103970.0,103960.0,0.3943427]
[1747600471575,0.001,103970.0,103960.0,0.6329027]
[1747600477703,0.01794609,103980.0,103970.0,0.27811653]
[1747600478344,0.01794609,103980.0,103970.0,0.28731202]
[1747600479041,0.01894609,103980.0,103970.0,0.28731202]
[1747600479667,0.0093296,103980.0,103970.0,0.28731202]
[1747600480750,0.01894609,103980.0,103970.0,0.28731202]
[1747600480983,0.0093296,103980.0,103970.0,0.29731202]
[1747600482421,0.0093296,103980.0,103970.0,0.39462142]
[1747600485181,0.00147211,103980.0,103970.0,0.39462142]
[1747600488658,0.00147211,103980.0,103970.0,0.4061242]
[1747600489702,0.00147211,103980.0,103970.0,0.7461242]
[1747600489935,0.00147211,103980.0,103970.0,0.9825642]
[1747600490384,0.00987671,103990.0,103980.0,0.57119526]
[1747600490604,0.00987671,103990.0,103980.0,0.7997545]
[1747600491227,0.002,103990.0,103980.0,0.7997545]
[1747600491448,0.002,103990.0,103980.0,0.72235137]
[1747600491897,0.002,103990.0,103980.0,0.73254686]
[1747600492577,0.002,103990.0,103980.0,0.82449084]
[1747600493058,0.002,103990.0,103980.0,1.05973084]
[1747600493514,0.002,103990.0,103980.0,1.06573084]
[1747600494159,0.002,103990.0,103980.0,1.30261084]
[1747600494342,0.002,103990.0,103980.0,0.82949084]
[1747600494565,0.002,103990.0,103980.0,1.29372413]
[1747600494795,0.002,103990.0,103980.0,1.30257084]
[1747600496398,0.002,103990.0,103980.0,1.28802999]
[1747600497356,0.002,103990.0,103980.0,1.70002999]
[1747600503550,0.002,103990.0,103980.0,1.62262686]
[1747600504774,0.002,103990.0,103980.0,1.38646686]
[1747600504984,0.002,103990.0,103980.0,1.62210686]
[1747600506096,0.002,103990.0,103980.0,1.62198686]
[1747600506333,0.002,103990.0,103980.0,1.14954686]
[1747600506537,0.002,103990.0,103980.0,1.62194686]
[1747600507925,0.002,103990.0,103980.0,1.62186686]
[1747600508136,0.002,103990.0,103980.0,1.14954686]
[1747600508446,0.002,103990.0,103980.0,1.62038686]
[1747600509207,0.002,103990.0,103980.0,1.38494686]
[1747600509431,0.002,103990.0,103980.0,0.97294686]
[1747600511316,0.002,103990.0,103980.0,0.98825015]
[1747600512529,0.002,103990.0,103980.0,1.40337015]
[1747600514199,0.002,103990.0,103980.0,1.40341015]
[1747600515415,0.002,103990.0,103980.0,1.16797015]
[1747600515717,0.002,103990.0,103980.0,1.63849015]
[1747600515942,0.002,103990.0,103980.0,1.40341015]
[1747600517168,0.05213133,104000.0,103990.0,0.24978169]
[1747600517376,0.07003133,104000.0,103990.0,0.50506723]
[1747600517792,0.05213133,104000.0,103990.0,0.50506723]
[1747600518406,0.05213133,104000.0,103990.0,0.50606723]
[1747600518815,0.06963133,104000.0,103990.0,0.49541718]
[1747600519021,0.0888607,104000.0,103990.0,0.49541718]
[1747600519198,0.08886052,104000.0,103990.0,0.49541718]
[1747600519766,0.09847534,104000.0,103990.0,0.49541718]
[1747600520627,0.07838727,104000.0,103990.0,0.49541718]
[1747600520837,0.08800219,104000.0,103990.0,0.49541718]
[1747600521042,0.08800219,104000.0,103990.0,0.25997718]
[1747600521192,0.08800219,104000.0,103990.0,0.49541718]
[1747600521541,0.08800219,104000.0,103990.0,0.48657047]
[1747600521749,0.08800219,104000.0,103990.0,0.49541718]
[1747600521975,0.07838727,104000.0,103990.0,0.49541718]
[1747600522735,0.08800219,104000.0,103990.0,0.49541718]
[1747600522988,0.08800219,104000.0,103990.0,0.25997718]
[1747600523193,0.08800219,104000.0,103990.0,0.49541718]
[1747600523393,0.07838727,104000.0,103990.0,0.49541718]
[1747600523620,0.06877245,104000.0,103990.0,0.49541718]
[1747600523771,0.07838727,104000.0,103990.0,0.49541718]
[1747600524312,0.05127245,104000.0,103990.0,0.57282031]
[1747600524538,0.06088727,104000.0,103990.0,0.57282031]
[1747600525127,0.06088727,104000.0,103990.0,0.24151481]
[1747600525128,0.26281025,104000.0,103990.0,0.24151481]
[1747600525331,0.06088737,104000.0,103990.0,0.48657047]
[1747600525616,0.07050256,104000.0,103990.0,0.48657047]
[1747600526041,0.07838737,104000.0,103990.0,0.25113047]
[1747600526259,0.08800311,104000.0,103990.0,0.48657047]
[1747600526394,0.0976184,104000.0,103990.0,0.48657047]